bitfinex-derivatives/quotes_BTCF0:USTF0_20251119
["timestamp","ask_amount","ask_price","bid_price","bid_amount"]
[1763516839907,0.1389384,92345.0,92344.0,0.03897248]
[1763516840224,0.1389478,92337.0,92336.0,0.03897248]
[1763516840423,0.4002678,92337.0,92336.0,0.03897248]
[1763516840621,0.03058,92332.0,92331.0,0.03897248]
[1763516840819,0.1389572,92329.0,92328.0,0.03897248]
[1763516841019,0.1389572,92329.0,92324.0,0.03897248]
[1763516841020,0.03058,92325.0,92324.0,0.03897248]
[1763516841220,0.03274561,92320.0,92319.0,0.00016241]
[1763516841524,0.29410561,92320.0,92319.0,0.00016241]
[1763516845320,0.03058,92305.0,92304.0,0.37342]
[1763516845522,0.29198,92305.0,92304.0,0.41777]
[1763516845716,0.27669,92305.0,92304.0,0.41777]
[1763516845921,0.2614,92305.0,92304.0,0.41777]
[1763516846627,0.01545251,92314.0,92313.0,0.05726]
[1763516846926,0.27685251,92314.0,92313.0,0.05726]
[1763516847128,0.29214251,92314.0,92313.0,0.05726]
[1763516847430,0.03058,92311.0,92310.0,0.00076509]
[1763516848032,0.03058,92301.0,92300.0,0.08225248]
[1763516848217,0.00758312,92301.0,92300.0,0.04404509]
[1763516848823,0.00758312,92301.0,92298.0,0.03897248]
[1763516848824,0.11057691,92300.0,92298.0,0.03897248]
[1763516849129,0.1084126,92299.0,92286.0,0.0002709]
[1763516849323,0.3608,92288.0,92286.0,0.0002709]
[1763516849523,0.3698265,92287.0,92286.0,0.0002709]
[1763516849734,0.45800417,92287.0,92286.0,0.0002709]
[1763516849927,0.3698265,92287.0,92286.0,0.0002709]
[1763516850429,0.2614,92287.0,92286.0,0.0435509]
[1763516850647,0.3608,92288.0,92287.0,0.1517065]
[1763516851129,0.00216561,92290.0,92289.0,0.04328]
[1763516851329,0.26356561,92290.0,92289.0,0.07236166]
[1763516851532,0.26356561,92290.0,92289.0,0.04328]
[1763516853337,0.26356561,92290.0,92289.0,0.07234945]
[1763516854332,0.26356561,92290.0,92289.0,0.04328]
[1763516859537,0.26356561,92290.0,92289.0,0.0711786]
[1763516863341,0.26356561,92290.0,92289.0,0.0278986]
[1763516863534,0.37198961,92290.0,92286.0,0.0002709]
[1763516863838,0.37198961,92290.0,92287.0,0.02793611]
[1763516864024,0.37198961,92290.0,92288.0,0.02793611]
[1763516864232,0.37198961,92290.0,92289.0,0.02794494]
[1763516864437,0.26364561,92290.0,92289.0,0.07122494]
[1763516864739,0.00216561,92290.0,92289.0,0.07122494]
[1763516865134,0.26364561,92290.0,92289.0,0.07122494]
[1763516867139,0.26364561,92290.0,92289.0,0.10029439]
[1763516868340,0.26364561,92290.0,92289.0,0.07122494]
[1763516869241,0.26364561,92290.0,92289.0,0.11019742]
[1763516869642,0.26364561,92290.0,92289.0,0.06686049]
[1763516869940,0.26364561,92290.0,92289.0,0.08911049]
[1763516870138,0.26364561,92290.0,92289.0,0.02794494]
[1763516870539,0.26364561,92290.0,92289.0,0.07122494]
[1763516870839,0.26360561,92290.0,92289.0,0.12972869]
[1763516871350,0.26360561,92290.0,92289.0,0.07122494]
[1763516871646,0.26360561,92290.0,92289.0,0.12966136]
[1763516872034,0.26360561,92290.0,92289.0,0.07122494]
[1763516873738,0.37202851,92290.0,92289.0,0.02794494]
[1763516874730,0.37202851,92290.0,92289.0,0.08640797]
[1763516874934,0.37202851,92290.0,92289.0,0.02794494]
[1763516875139,0.37202851,92290.0,92289.0,0.0669215]
[1763516875542,0.37202851,92290.0,92289.0,0.02794494]
[1763516875743,0.1084265,92287.0,92286.0,0.0002709]
[1763516875941,0.1084359,92279.0,92278.0,0.05846303]
[1763516876148,0.00216561,92280.0,92278.0,0.10174303]
[1763516876347,0.00216561,92280.0,92275.0,0.1084405]
[1763516876348,0.00216561,92280.0,92279.0,0.10176354]
[1763516876549,0.26360561,92280.0,92279.0,0.04328]
[1763516876749,0.26360561,92280.0,92279.0,0.10176354]
[1763516878451,0.37204031,92280.0,92268.0,0.01291]
[1763516878650,0.37204031,92280.0,92277.0,0.05605]
[1763516878851,0.26360561,92280.0,92279.0,0.04307]
[1763516879046,0.26360561,92280.0,92279.0,0.1515059]
[1763516879242,0.26360561,92280.0,92279.0,0.04307]
[1763516879949,0.26360561,92280.0,92279.0,0.1515059]
[1763516880152,0.26360561,92280.0,92279.0,0.02168]
[1763516880347,0.26360561,92280.0,92277.0,0.05605]
[1763516880547,0.26360561,92280.0,92279.0,0.04307]
[1763516880748,0.26360561,92280.0,92279.0,0.1515059]
[1763516882352,0.00016251,92288.0,92287.0,0.04307]
[1763516882558,0.00016251,92288.0,92287.0,0.1514965]
[1763516883141,0.3608,92307.0,92306.0,0.1514742]
[1763516883345,0.1083943,92315.0,92314.0,0.04307]
[1763516883559,0.3698343,92315.0,92314.0,0.04307]
[1763516883756,0.26144,92315.0,92314.0,0.04307]
[1763516883957,0.3698336,92315.0,92314.0,0.04307]
[1763516884153,0.3698336,92315.0,92313.0,0.0127]
[1763516885856,0.45798453,92315.0,92314.0,0.04307]
[1763516886763,0.34959093,92315.0,92314.0,0.04307]
[1763516887363,0.34959093,92315.0,92314.0,0.07228874]
[1763516887663,0.34959093,92315.0,92314.0,0.10082694]
[1763516889363,0.34959093,92315.0,92314.0,0.0716082]
[1763516890152,0.34959093,92315.0,92314.0,0.10081843]
[1763516890651,0.08815093,92315.0,92314.0,0.10081843]
[1763516890851,0.26144,92315.0,92314.0,0.0716082]
[1763516892564,0.346678,92315.0,92314.0,0.0716082]
[1763516894475,0.346678,92315.0,92314.0,0.0285382]
[1763516897277,0.346678,92315.0,92314.0,0.0716082]
[1763516899068,0.346638,92315.0,92314.0,0.0716082]
[1763516899670,0.4550316,92315.0,92314.0,0.0716082]
[1763516899977,0.4550316,92315.0,92314.0,0.0285382]
[1763516901271,0.1084041,92306.0,92305.0,0.00016251]
[1763516901471,0.3698041,92306.0,92305.0,0.02866434]
[1763516901871,0.108417,92295.0,92294.0,0.02918376]
[1763516902176,0.2614,92295.0,92294.0,0.02918376]
[1763516902364,0.2614,92295.0,92294.0,0.05083376]
[1763516902770,0.2614,92295.0,92294.0,0.02165]
[1763516903479,0.2614,92295.0,92294.0,0.04271]
[1763516905276,0.2614,92295.0,92290.0,0.02241509]
[1763516905277,0.1084182,92294.0,92290.0,0.02241509]
[1763516905470,0.1084182,92294.0,92290.0,0.04347509]
[1763516905671,0.2614,92295.0,92294.0,0.04271]
[1763516905672,0.3698175,92295.0,92294.0,0.04271]
[1763516905979,0.1084132,92299.0,92298.0,0.04271]
[1763516906175,0.3698132,92299.0,92298.0,0.04271]
[1763516908667,0.2614,92299.0,92298.0,0.04271]
[1763516908874,0.00216561,92300.0,92299.0,0.0437]
[1763516909087,0.26356561,92300.0,92299.0,0.0437]
[1763516912883,0.62436561,92300.0,92299.0,0.0437]
[1763516913071,0.1084126,92299.0,92296.0,0.01366]
[1763516913272,0.1084126,92299.0,92296.0,0.03642]
[1763516913678,0.1084126,92299.0,92296.0,0.01366]
[1763516913876,0.1084126,92299.0,92297.0,0.02989043]
[1763516914072,0.1084126,92299.0,92298.0,0.02989043]
[1763516916671,0.62436561,92300.0,92298.0,0.02989043]
[1763516916875,0.73277701,92300.0,92299.0,0.02989043]
[1763516918076,0.73277701,92300.0,92299.0,0.05265043]
[1763516920283,0.36296561,92300.0,92299.0,0.07470043]
[1763516920488,0.62440561,92300.0,92299.0,0.07470043]
[1763516920778,0.35289996,92300.0,92299.0,0.07470043]
[1763516920984,0.00016251,92304.0,92303.0,0.04481]
[1763516921179,0.26160251,92304.0,92303.0,0.18310833]
[1763516921578,0.00016251,92304.0,92303.0,0.54390833]
[1763516922082,0.26144,92310.0,92309.0,0.1532109]
[1763516922286,0.26144,92310.0,92309.0,0.18310133]
[1763516922684,0.3608,92318.0,92317.0,0.04481]
[1763516922872,0.62224,92318.0,92317.0,0.07470043]
[1763516923281,0.26144,92318.0,92317.0,0.07470043]
[1763516923594,0.26144,92318.0,92317.0,0.11362921]
[1763516923974,0.26144,92318.0,92317.0,0.22202071]
[1763516924381,0.34911983,92318.0,92317.0,0.22202071]
[1763516924584,0.34911983,92318.0,92317.0,0.11362921]
[1763516925286,0.34911983,92318.0,92317.0,0.07470043]
[1763516928783,0.34911983,92318.0,92317.0,0.08183113]
[1763516929388,0.34911983,92318.0,92317.0,0.02989043]
[1763516929891,0.34911983,92318.0,92317.0,0.07470043]
[1763516931783,0.70991983,92318.0,92317.0,0.02989043]
[1763516935694,0.70991983,92318.0,92317.0,0.0283632]
[1763516935895,0.1084009,92309.0,92308.0,0.00016251]
[1763516936097,0.6222,92309.0,92308.0,0.04497251]
[1763516936290,0.7306009,92309.0,92308.0,0.04497251]
[1763516939593,0.7306009,92309.0,92308.0,0.02292251]
[1763516940095,0.7306009,92309.0,92308.0,0.00016251]
[1763516940687,0.8027009,92309.0,92308.0,0.00016251]
[1763516943287,0.8027009,92309.0,92308.0,0.02239251]
[1763516943789,0.8027009,92309.0,92308.0,0.00016251]
[1763516947099,0.1084104,92301.0,92295.0,0.0291807]
[1763516947302,0.1084104,92301.0,92289.0,0.03892878]
[1763516947303,0.1084221,92291.0,92285.0,0.0291807]
[1763516947596,0.1084245,92289.0,92288.0,0.05749]
[1763516948098,0.1084245,92289.0,92288.0,0.0876117]
[1763516948501,0.00216561,92290.0,92289.0,0.04487]
[1763516948695,0.26356561,92290.0,92289.0,0.0749917]
[1763516951704,0.26356561,92290.0,92289.0,0.1834161]
[1763516953606,0.26356561,92290.0,92289.0,0.1834162]
[1763516955291,0.00016251,92298.0,92297.0,0.04487]
[1763516955499,0.00016251,92298.0,92297.0,0.10419687]
[1763516955692,0.00016251,92298.0,92297.0,0.0749917]
[1763516956299,0.0865088,92298.0,92297.0,0.05932687]
[1763516956502,0.0865088,92298.0,92297.0,0.0749917]
[1763516957602,0.0865088,92298.0,92297.0,0.0301217]
[1763516958704,0.4200088,92298.0,92297.0,0.0749917]
[1763516959309,0.4200088,92298.0,92297.0,0.0301217]
[1763516962404,0.4200088,92298.0,92297.0,0.0736717]
[1763516962601,0.4200088,92298.0,92297.0,0.0521517]
[1763516963008,0.4200088,92298.0,92297.0,0.0301217]
[1763516963202,0.4200088,92298.0,92297.0,0.05933668]
[1763516965213,0.4200088,92298.0,92297.0,0.0301217]
[1763516965804,0.4200088,92298.0,92297.0,0.0734717]
[1763516966611,0.5284228,92298.0,92297.0,0.0734717]
[1763516971013,0.5284228,92298.0,92297.0,0.0301217]
[1763516971805,0.5284228,92298.0,92297.0,0.05937361]
[1763516972012,0.5284228,92298.0,92270.0,0.05848733]
[1763516972013,0.1084415,92275.0,92270.0,0.05848733]
[1763516972225,0.7306415,92275.0,92274.0,0.05627]
[1763516972516,0.6222,92275.0,92274.0,0.05627]
[1763516976116,0.62224,92275.0,92274.0,0.05627]
[1763516976411,0.3608,92285.0,92284.0,0.04365]
[1763516976717,0.62224,92285.0,92284.0,0.04365]
[1763516977015,0.62224,92285.0,92281.0,0.01304]
[1763516977218,0.1084309,92284.0,92281.0,0.05669]
[1763516977807,0.1084309,92284.0,92283.0,0.04365]
[1763516978012,0.62224,92285.0,92284.0,0.04365]
[1763516981015,0.1084309,92284.0,92281.0,0.03456]
[1763516982221,0.62224,92285.0,92281.0,0.03456]
[1763516982222,0.1084333,92282.0,92281.0,0.03456]
[1763516983321,0.1084333,92282.0,92281.0,0.01304]
[1763516983712,0.1805322,92283.0,92281.0,0.01304]
[1763516983912,0.1805322,92283.0,92282.0,0.03053373]
[1763516985123,0.0721,92283.0,92282.0,0.05205373]
[1763516985616,0.0721,92283.0,92282.0,0.03053373]
[1763516986311,0.0721,92283.0,92282.0,0.07418373]
[1763516988313,0.0721,92283.0,92282.0,0.05205373]
[1763516988511,0.0721,92283.0,92282.0,0.03053373]
[1763516988714,0.0721,92283.0,92282.0,0.07418373]
[1763516988924,0.0721,92283.0,92282.0,0.05205373]
[1763516989223,0.0721,92283.0,92282.0,0.03053373]
[1763516991330,0.0721,92283.0,92282.0,0.05205373]
[1763516991929,0.0721,92283.0,92282.0,0.03053373]
[1763516992531,0.0721,92283.0,92282.0,0.07418373]
[1763516992829,0.0721,92283.0,92269.0,0.05847661]
[1763516992830,0.1084474,92270.0,92267.0,0.01304]
[1763516993131,0.108458,92261.0,92260.0,0.01380509]
[1763516993331,1.5,92267.0,92266.0,0.04365]
[1763516993826,1.76144,92267.0,92266.0,0.04365]
[1763516994022,1.84860455,92267.0,92266.0,0.04365]
[1763516994218,0.1084592,92260.0,92257.0,0.02160267]
[1763516994418,0.3608,92258.0,92257.0,0.04373267]
[1763516995532,0.3608,92258.0,92257.0,8.267e-05]
[1763516995730,0.3608,92258.0,92253.0,0.03456]
[1763516995926,0.3608,92258.0,92253.0,0.05669]
[1763516996233,0.1084662,92254.0,92253.0,0.05669]
[1763516996631,0.1084744,92247.0,92246.0,0.03483102]
[1763516996834,0.7307544,92247.0,92246.0,0.03483102]
[1763516997029,0.73083686,92247.0,92246.0,0.03483102]
[1763516997529,0.7307544,92247.0,92246.0,0.01331102]
[1763516997725,0.62228,92247.0,92246.0,0.01331102]
[1763516997931,0.62237901,92247.0,92246.0,0.05858102]
[1763516999531,0.62237901,92247.0,92246.0,0.00027102]
[1763516999742,0.62237901,92247.0,92232.0,0.05831]
[1763516999743,0.1084909,92233.0,92232.0,0.05831]
[1763516999927,0.7307709,92233.0,92232.0,0.05831]
[1763517000238,0.62237051,92233.0,92232.0,0.05831]
[1763517000441,0.62241051,92233.0,92232.0,0.05831]
[1763517000632,0.36089051,92233.0,92232.0,0.05831]
[1763517000830,0.3608,92247.0,92246.0,0.1537456]
[1763517001139,0.26152,92247.0,92246.0,0.04527]
[1763517002836,0.1084798,92243.0,92232.0,0.01304]
[1763517003042,0.469285,92238.0,92237.0,0.02217]
[1763517003243,0.730885,92238.0,92237.0,0.02217]
[1763517004234,0.730885,92238.0,92237.0,0.04527]
[1763517004741,0.6224,92238.0,92237.0,0.04527]
[1763517005636,0.3608,92238.0,92237.0,0.04527]
[1763517005843,0.62244,92238.0,92237.0,0.04527]
[1763517006540,0.1084817,92241.0,92232.0,0.01304]
[1763517006541,0.08608946,92248.0,92247.0,0.04527]
[1763517006742,0.36296561,92250.0,92249.0,0.04527]
[1763517006947,0.26384561,92250.0,92249.0,0.04527]
[1763517007343,0.26384561,92250.0,92249.0,0.07524796]
[1763517008050,0.26168,92250.0,92249.0,0.07524796]
[1763517008946,0.26168,92250.0,92249.0,0.18372006]
[1763517009733,0.26384561,92250.0,92249.0,0.07524796]
[1763517009940,0.26384561,92250.0,92249.0,0.18372006]
[1763517010750,0.26168,92250.0,92249.0,0.18372006]
[1763517011051,0.3608,92258.0,92255.0,0.153735]
[1763517011245,0.26168,92259.0,92255.0,0.153735]
[1763517011246,0.26168,92259.0,92255.0,0.18371296]
[1763517012245,0.26168,92259.0,92258.0,0.1537315]
[1763517012542,0.26168,92270.0,92269.0,0.04527]
[1763517012741,0.26168,92270.0,92269.0,0.43604796]
[1763517015038,0.26384561,92270.0,92269.0,0.43604796]
[1763517015253,0.62464561,92270.0,92269.0,0.07524796]
[1763517019253,0.62464561,92270.0,92269.0,0.04527]
[1763517020746,0.1084485,92269.0,92268.0,0.01297]
[1763517020946,0.62464561,92270.0,92269.0,0.04527]
[1763517022146,0.73309291,92270.0,92269.0,0.04527]
[1763517024358,0.62464561,92270.0,92269.0,0.04527]
[1763517026660,0.62464561,92270.0,92269.0,0.1537185]
[1763517027252,0.62464561,92270.0,92269.0,0.07534606]
[1763517029863,0.0001626,92279.0,92278.0,0.153288]
[1763517030062,0.0001626,92279.0,92278.0,0.18336406]
[1763517030959,0.0001626,92279.0,92278.0,0.07492606]
[1763517031361,0.0001626,92279.0,92278.0,0.05215606]
[1763517031660,0.0001626,92279.0,92278.0,0.04485]
[1763517032255,0.4693994,92279.0,92278.0,0.04485]
[1763517033259,0.3609626,92279.0,92278.0,0.04485]
[1763517034261,0.3609626,92279.0,92278.0,0.07500667]
[1763517037959,0.6224826,92279.0,92278.0,0.07500667]
[1763517045172,0.7309194,92279.0,92268.0,0.04213305]
[1763517045478,0.7309194,92279.0,92260.0,0.0001626]
[1763517045479,0.108458,92261.0,92260.0,0.0001626]
[1763517045665,0.730818,92261.0,92260.0,0.0001626]
[1763517047175,0.1084608,92259.0,92246.0,0.01293]
[1763517047376,0.3608,92247.0,92246.0,0.03501]
[1763517047581,0.62236,92247.0,92246.0,0.05778]
[1763517047776,0.7308344,92247.0,92246.0,0.01293]
[1763517048477,0.44689907,92247.0,92246.0,0.04485]
[1763517048678,0.70845907,92247.0,92246.0,0.04485]
[1763517049583,0.62236,92247.0,92246.0,0.04485]
[1763517050085,0.04416,92274.0,92273.0,0.04485]
[1763517050275,0.04416,92274.0,92273.0,0.1532938]
[1763517050877,0.26156,92278.0,92277.0,0.1532891]
[1763517051581,0.0444309,92286.0,92285.0,0.1532797]
[1763517051785,0.3062309,92286.0,92285.0,0.1532797]
[1763517054377,0.0454309,92286.0,92285.0,0.1532797]
[1763517054985,0.0238189,92286.0,92285.0,0.1532797]
[1763517055786,0.0238189,92286.0,92285.0,0.04485]
[1763517056887,0.001,92286.0,92285.0,0.04485]
[1763517057180,0.001,92286.0,92285.0,0.4353804]
[1763517058088,0.0001626,92287.0,92286.0,0.1515686]
[1763517058283,0.0001626,92287.0,92286.0,0.181299]
[1763517061982,0.09036964,92328.0,92286.0,0.181299]
[1763517061983,0.07739964,92337.0,92325.0,0.1515228]
[1763517062197,0.3608,92346.0,92345.0,0.04314]
[1763517062198,0.02108,92346.0,92345.0,0.04314]
[1763517062484,0.01394,92352.0,92336.0,0.01294]
[1763517062485,0.04301,92352.0,92351.0,0.04314]
[1763517063483,0.02108,92352.0,92351.0,0.04314]
[1763517063780,0.04301,92352.0,92351.0,0.04314]
[1763517064376,0.29175,92360.0,92359.0,0.04314]
[1763517064582,0.29391561,92360.0,92359.0,0.02208]
[1763517064900,0.29391561,92360.0,92352.0,0.1083511]
[1763517065089,0.04301,92353.0,92352.0,0.1514911]
[1763517065591,0.04201,92353.0,92352.0,0.1514911]
[1763517066287,0.04201,92353.0,92352.0,0.1524911]
[1763517066788,0.29175,92360.0,92359.0,0.04314]
[1763517066988,0.27997561,92360.0,92359.0,0.40394]
[1763517067293,0.25804561,92360.0,92359.0,0.40394]
[1763517067692,0.27997561,92360.0,92359.0,0.40394]
[1763517067895,0.27997561,92360.0,92359.0,0.3608]
[1763517068386,0.27997561,92360.0,92359.0,0.38288]
[1763517069688,0.27997561,92360.0,92359.0,0.40394]
[1763517069689,0.25804561,92360.0,92359.0,0.40394]
[1763517069883,0.00016251,92361.0,92360.0,0.15224679]
[1763517070990,0.00116251,92361.0,92360.0,0.15224679]
[1763517071589,0.00016251,92361.0,92360.0,0.15224679]
[1763517071793,0.04317251,92361.0,92360.0,0.00076509]
[1763517072287,0.04317251,92361.0,92360.0,0.04390509]
[1763517072489,0.02124251,92361.0,92360.0,0.04390509]
[1763517072888,0.00016251,92361.0,92360.0,0.04390509]
[1763517073691,0.04317251,92361.0,92360.0,0.04390509]
[1763517073896,0.04317251,92361.0,92360.0,0.00076509]
[1763517075380,0.04301,92351.0,92350.0,0.3608]
[1763517075586,0.04301,92351.0,92350.0,0.00076509]
[1763517076389,0.04301,92343.0,92341.0,0.3608]
[1763517077196,0.04301,92343.0,92342.0,0.02224251]
[1763517078191,0.40381,92343.0,92342.0,0.00016251]
[1763517078396,0.05376,92331.0,92322.0,0.3608]
[1763517079286,0.04301,92331.0,92330.0,0.40394]
[1763517079487,0.02108,92331.0,92330.0,0.5123169]
[1763517079686,0.04301,92331.0,92330.0,0.5123169]
[1763517080291,0.04301,92331.0,92330.0,0.40394]
[1763517083095,0.30628,92337.0,92336.0,0.04285]
[1763517083301,0.26188,92337.0,92336.0,0.04285]
[1763517084100,0.00236045,92340.0,92339.0,0.04285]
[1763517084303,0.00016242,92340.0,92339.0,0.40365]
[1763517084801,0.00016242,92340.0,92339.0,0.4334039]
[1763517086301,0.00116242,92340.0,92339.0,0.4334039]
[1763517086705,0.00016242,92340.0,92339.0,0.4334039]
[1763517087296,0.00016242,92340.0,92339.0,0.4344039]
[1763517087498,0.28328,92351.0,92350.0,0.04257]
[1763517087697,0.28328,92351.0,92350.0,0.40337]
[1763517088513,0.28328,92351.0,92350.0,0.4334005]
[1763517088709,0.26188,92351.0,92350.0,0.4334005]
[1763517089197,0.26188,92351.0,92350.0,0.541754]
[1763517089402,0.26288,92351.0,92350.0,0.541754]
[1763517090408,0.26388,92351.0,92350.0,0.541754]
[1763517090906,0.26288,92351.0,92350.0,0.4334005]
[1763517091105,0.30535,92351.0,92350.0,0.4334005]
[1763517091309,0.30435,92351.0,92350.0,0.4334005]
[1763517091810,0.26188,92351.0,92350.0,0.46258239]
[1763517092013,0.26188,92351.0,92350.0,0.4334005]
[1763517092998,0.26188,92351.0,92350.0,0.541754]
[1763517093199,0.28315,92351.0,92350.0,0.541754]
[1763517093414,0.30435,92351.0,92350.0,0.541754]
[1763517093609,0.30435,92351.0,92350.0,0.57093747]
[1763517094214,0.30435,92351.0,92350.0,0.57193747]
[1763517094410,0.30435,92351.0,92350.0,0.4344005]
[1763517094616,0.30435,92351.0,92350.0,0.0736005]
[1763517095115,0.30435,92351.0,92350.0,0.0726005]
[1763517095321,0.30435,92351.0,92350.0,0.0300305]
[1763517097310,0.30435,92351.0,92350.0,0.0592147]
[1763517097817,0.30535,92351.0,92350.0,0.0592147]
[1763517099613,0.30535,92351.0,92350.0,0.0300305]
[1763517099921,0.30535,92351.0,92350.0,0.0735205]
[1763517100104,0.28415,92351.0,92350.0,0.0735205]
[1763517100611,0.26188,92351.0,92350.0,0.0735205]
[1763517100804,0.30635,92351.0,92350.0,0.0735205]
[1763517101210,0.30535,92351.0,92350.0,0.0735205]
[1763517101410,0.30635,92351.0,92350.0,0.0735205]
[1763517105616,0.30635,92351.0,92350.0,0.11238221]
[1763517106320,0.30635,92351.0,92350.0,0.0735205]
[1763517106923,0.31995,92351.0,92350.0,0.0735205]
[1763517107315,0.30635,92351.0,92350.0,0.181874]
[1763517107520,0.31995,92351.0,92350.0,0.181874]
[1763517107915,0.31995,92351.0,92350.0,0.24035061]
[1763517108220,0.31895,92351.0,92350.0,0.24035061]
[1763517108420,0.31995,92351.0,92350.0,0.0735205]
[1763517108608,0.30635,92351.0,92350.0,0.0735205]
[1763517109828,0.30635,92351.0,92350.0,0.181874]
[1763517110019,0.31995,92351.0,92350.0,0.181874]
[1763517110223,0.31895,92351.0,92350.0,0.181874]
[1763517110419,0.31795,92351.0,92350.0,0.0735205]
[1763517111016,0.31795,92351.0,92350.0,0.181874]
[1763517111215,0.30435,92351.0,92350.0,0.181874]
[1763517111428,0.26188,92351.0,92350.0,0.181874]
[1763517112224,0.23585672,92351.0,92350.0,0.181874]
[1763517114127,0.04263242,92360.0,92359.0,0.1518329]
[1763517114325,0.04483045,92360.0,92359.0,0.1818634]
[1763517115224,0.00236045,92360.0,92359.0,0.1818634]
[1763517115425,0.02363045,92360.0,92359.0,0.22085209]
[1763517115619,0.02363045,92360.0,92359.0,0.1818634]
[1763517115820,0.04483045,92360.0,92359.0,0.1818634]
[1763517117020,0.04483045,92360.0,92359.0,0.0735205]
[1763517117522,0.04483045,92360.0,92359.0,0.0745205]
[1763517118130,0.04483045,92360.0,92359.0,0.10340917]
[1763517118326,0.04483045,92360.0,92359.0,0.10240789]
[1763517119020,0.04483045,92360.0,92359.0,0.0731805]
[1763517120219,0.2616,92363.0,92362.0,0.04315]
[1763517120431,0.00027066,92366.0,92365.0,0.05358]
[1763517120629,0.3608,92387.0,92386.0,0.04315]
[1763517120630,0.40414,92387.0,92386.0,0.04315]
[1763517120823,0.3608,92395.0,92394.0,0.04315]
[1763517120824,0.40414,92395.0,92394.0,0.04315]
[1763517121017,0.36107055,92406.0,92405.0,0.1514389]
[1763517121018,0.02235055,92406.0,92405.0,0.1514389]
[1763517121330,0.04361055,92406.0,92405.0,0.04315]
[1763517121724,0.04334,92404.0,92403.0,0.3608]
[1763517122028,0.04334,92404.0,92403.0,0.39016549]
[1763517122225,0.04334,92404.0,92403.0,0.3608]
[1763517122421,0.04334,92404.0,92403.0,0.40395]
[1763517124331,0.04334,92401.0,92400.0,0.00219803]
[1763517124727,0.04334,92397.0,92396.0,0.00016233]
[1763517124931,0.40414,92397.0,92396.0,0.00016233]
[1763517127229,0.40514,92397.0,92396.0,0.00016233]
[1763517127427,0.001,92397.0,92396.0,0.04331233]
[1763517128135,0.001,92397.0,92396.0,0.40411233]
[1763517129535,0.04434,92397.0,92396.0,0.40411233]
[1763517130633,0.04334,92397.0,92396.0,0.40411233]
[1763517131225,0.04334,92397.0,92396.0,0.36096233]
[1763517131432,0.04434,92397.0,92396.0,0.36096233]
[1763517132427,0.04434,92397.0,92396.0,0.00016233]
[1763517133635,0.04334,92397.0,92396.0,0.00016233]
[1763517133938,0.04434,92397.0,92396.0,0.00016233]
[1763517134735,0.04334,92386.0,92385.0,0.3608]
[1763517134930,0.04334,92368.0,92367.0,0.3608]
[1763517135134,0.04334,92368.0,92356.0,0.3608]
[1763517135135,0.1516852,92357.0,92356.0,0.40395]
[1763517135333,0.1516852,92357.0,92356.0,0.43323407]
[1763517135534,0.1516852,92357.0,92356.0,0.40395]
[1763517136336,0.1516852,92357.0,92356.0,0.3823]
[1763517136737,0.1516852,92357.0,92356.0,0.3608]
[1763517138638,0.1516852,92357.0,92356.0,0.40395]
[1763517139240,0.04334,92357.0,92356.0,0.40395]
[1763517140251,0.04334,92357.0,92356.0,0.3608]
[1763517141252,0.04334,92348.0,92347.0,0.04331233]
[1763517141552,0.04334,92348.0,92347.0,0.00016233]
[1763517142851,0.04334,92348.0,92347.0,0.04405233]
[1763517143158,0.04334,92348.0,92347.0,0.04605233]
[1763517143336,0.00073267,92350.0,92349.0,0.05376]
[1763517143538,0.00073267,92350.0,92349.0,0.41456]
[1763517143939,0.04393267,92350.0,92349.0,0.40469]
[1763517144343,0.04393267,92350.0,92349.0,0.3608]
[1763517144549,0.0432,92348.0,92347.0,0.00216233]
[1763517145654,0.1515804,92327.0,92326.0,0.00027078]
[1763517145843,0.4131404,92327.0,92326.0,0.00027078]
[1763517146044,0.1515958,92314.0,92313.0,0.02112]
[1763517146244,0.1515958,92314.0,92310.0,0.00219803]
[1763517146245,0.0432,92311.0,92310.0,0.00219803]
[1763517146441,0.01362,92313.0,92299.0,0.3608]
[1763517146442,0.01335267,92313.0,92299.0,0.3608]
[1763517146641,0.0432,92311.0,92310.0,0.00219803]
[1763517146843,9.42e-05,92312.0,92311.0,0.04389]
[1763517147353,0.00016242,92315.0,92314.0,0.0442]
[1763517147552,0.00016242,92315.0,92314.0,0.07330074]
[1763517148148,0.00016242,92315.0,92314.0,0.0442]
[1763517148658,0.2616,92329.0,92328.0,0.04621]
[1763517150252,0.2626,92329.0,92328.0,0.04621]
[1763517150456,0.2636,92329.0,92328.0,0.04621]
[1763517151461,0.30829,92329.0,92328.0,0.04621]
[1763517151661,0.2636,92329.0,92328.0,0.04621]
[1763517152255,0.002,92329.0,92328.0,0.04621]
[1763517152559,0.002,92329.0,92328.0,0.07526635]
[1763517153258,0.001,92329.0,92328.0,0.07526635]
[1763517153459,0.1083741,92333.0,92332.0,0.04621]
[1763517153663,0.1083741,92333.0,92332.0,0.40701]
[1763517154052,0.1083702,92337.0,92332.0,0.40701]
[1763517154256,0.00016242,92338.0,92337.0,0.04621]
[1763517154457,2.42e-06,92338.0,92337.0,0.04621]
[1763517154649,2.42e-06,92338.0,92337.0,0.07527223]
[1763517154854,0.2616,92360.0,92358.0,0.04621]
[1763517155064,0.2616,92360.0,92359.0,0.04621]
[1763517156154,0.28359,92360.0,92359.0,0.04621]
[1763517156350,0.2636,92360.0,92359.0,0.04621]
[1763517157065,0.2616,92360.0,92359.0,0.04621]
[1763517157753,0.2626,92360.0,92359.0,0.04621]
[1763517158355,0.04469,92354.0,92353.0,0.40701]
[1763517158562,0.1530394,92354.0,92353.0,0.40701]
[1763517159368,0.04469,92354.0,92353.0,0.40701]
[1763517159958,0.04569,92354.0,92353.0,0.40701]
[1763517160459,0.1530355,92358.0,92357.0,0.04621]
[1763517160660,0.04469,92358.0,92357.0,0.04621]
[1763517160865,0.2616,92360.0,92359.0,0.04621]
[1763517162572,0.2626,92360.0,92359.0,0.04621]
[1763517162768,0.001,92360.0,92359.0,0.07535128]
[1763517163072,0.002,92360.0,92359.0,0.07535128]
[1763517165080,0.001,92360.0,92359.0,0.07535128]
[1763517165770,0.00027066,92366.0,92359.0,0.07535128]
[1763517165966,0.00027066,92366.0,92365.0,0.40701]
[1763517166272,0.00027066,92366.0,92365.0,0.43615128]
[1763517167274,0.00127066,92366.0,92365.0,0.40701]
[1763517167473,0.00127066,92366.0,92365.0,0.5153469]
[1763517167675,0.00027066,92366.0,92365.0,0.5153469]
[1763517167875,0.00127066,92366.0,92365.0,0.5153469]